[Event "*** Titled Tuesday Blitz"]
[Site "Chess.com"]
[Date "2020.11.03"]
[Round "9"]
[White "niki_2003"]
[Black "mr_gustavo"]
[Result "0-1"]
[WhiteElo "1966"]
[BlackElo "2403"]
[TimeControl "180+1"]
[EndTime "11:48:14 PST"]
[Termination "mr_gustavo won by checkmate"]

1. d4 {[%clk 0:03:00.9]} 1... Nf6 {[%clk 0:03:00.1]} 2. c4 {[%clk 0:03:00.7]}
2... g6 {[%clk 0:03:01]} 3. Nc3 {[%clk 0:03:00.6]} 3... Bg7 {[%clk 0:03:01.6]}
4. e4 {[%clk 0:03:01.2]} 4... d6 {[%clk 0:03:02.2]} 5. Nf3 {[%clk 0:03:01.6]}
5... O-O {[%clk 0:03:02.6]} 6. Be2 {[%clk 0:03:02.2]} 6... e5 {[%clk 0:03:03.1]}
7. O-O {[%clk 0:03:02.8]} 7... Nc6 {[%clk 0:03:03.6]} 8. d5 {[%clk 0:03:03.4]}
8... Ne7 {[%clk 0:03:04]} 9. b4 {[%clk 0:03:04.1]} 9... Nd7 {[%clk 0:03:03.9]}
10. Re1 {[%clk 0:03:04.3]} 10... a5 {[%clk 0:03:03.5]} 11. bxa5 {[%clk
0:02:59.2]} 11... Rxa5 {[%clk 0:02:54.4]} 12. a4 {[%clk 0:02:52]} 12... f5
{[%clk 0:02:44.9]} 13. Ng5 {[%clk 0:02:50.9]} 13... Nc5 {[%clk 0:02:40.6]} 14.
Ba3 {[%clk 0:02:48.1]} 14... h6 {[%clk 0:02:34.3]} 15. Bb4 {[%clk 0:02:48.2]}
15... Ra8 {[%clk 0:02:31.1]} 16. Bxc5 {[%clk 0:02:47.3]} 16... dxc5 {[%clk
0:02:32]} 17. Ne6 {[%clk 0:02:47.3]} 17... Bxe6 {[%clk 0:02:32.6]} 18. dxe6
{[%clk 0:02:47.8]} 18... Qd4 {[%clk 0:02:32.3]} 19. Nb5 {[%clk 0:02:37.1]} 19...
Qxe4 {[%clk 0:02:17.8]} 20. Nxc7 {[%clk 0:02:11.5]} 20... Rad8 {[%clk 0:02:16]}
21. Qb3 {[%clk 0:02:11.2]} 21... Rd2 {[%clk 0:02:00.2]} 22. Bf3 {[%clk
0:01:58.9]} 22... Qd4 {[%clk 0:01:55.5]} 23. Qe3 {[%clk 0:01:44.8]} 23... Qxe3
{[%clk 0:01:40.4]} 24. fxe3 {[%clk 0:01:26]} 24... e4 {[%clk 0:01:41.3]} 25.
Rab1 {[%clk 0:01:00.4]} 25... exf3 {[%clk 0:01:38.2]} 26. gxf3 {[%clk 0:01:01]}
26... f4 {[%clk 0:01:35.6]} 27. e4 {[%clk 0:00:48.1]} 27... Bd4+ {[%clk
0:01:31.6]} 28. Kh1 {[%clk 0:00:48.5]} 28... g5 {[%clk 0:01:31.6]} 29. Rxb7
{[%clk 0:00:47.8]} 29... Ng6 {[%clk 0:01:15.8]} 30. Nb5 {[%clk 0:00:27.9]} 30...
Nh4 {[%clk 0:01:07.1]} 31. e7 {[%clk 0:00:19.8]} 31... Nxf3 {[%clk 0:00:51.7]}
32. exf8=Q+ {[%clk 0:00:19.4]} 32... Kxf8 {[%clk 0:00:52.6]} 33. Rb8+ {[%clk
0:00:19.8]} 33... Kg7 {[%clk 0:00:52.7]} 34. Rb7+ {[%clk 0:00:19.9]} 34... Kg6
{[%clk 0:00:53.2]} 35. Rb6+ {[%clk 0:00:18.9]} 35... Kh5 {[%clk 0:00:53.5]} 36.
Nxd4 {[%clk 0:00:18.7]} 36... Rxh2# {[%clk 0:00:52.8]} 0-1

[Event "*** Titled Tuesday Blitz"]
[Site "Chess.com"]
[Date "2020.11.03"]
[Round "9"]
[White "Skat2704"]
[Black "Eloist"]
[Result "1-0"]
[WhiteElo "2440"]
[BlackElo "2276"]
[TimeControl "180+1"]
[EndTime "11:48:18 PST"]
[Termination "Skat2704 won on time"]

1. d4 {[%clk 0:03:00]} 1... e6 {[%clk 0:02:59]} 2. c4 {[%clk 0:03:00.1]} 2...
Nf6 {[%clk 0:02:58.1]} 3. Nf3 {[%clk 0:03:00.3]} 3... b6 {[%clk 0:02:57.2]} 4.
g3 {[%clk 0:02:59]} 4... Bb7 {[%clk 0:02:56.8]} 5. Bg2 {[%clk 0:02:59.5]} 5...
Be7 {[%clk 0:02:57.2]} 6. O-O {[%clk 0:02:59.5]} 6... O-O {[%clk 0:02:56.7]} 7.
Nc3 {[%clk 0:03:00.1]} 7... Ne4 {[%clk 0:02:56.1]} 8. Qc2 {[%clk 0:02:59]} 8...
Nxc3 {[%clk 0:02:55.3]} 9. bxc3 {[%clk 0:02:58.6]} 9... Nc6 {[%clk 0:02:54.6]}
10. Nd2 {[%clk 0:02:52.7]} 10... Na5 {[%clk 0:02:51]} 11. Bxb7 {[%clk
0:02:43.9]} 11... Nxb7 {[%clk 0:02:51.9]} 12. e4 {[%clk 0:02:44.4]} 12... d6
{[%clk 0:02:44.8]} 13. f4 {[%clk 0:02:42.6]} 13... e5 {[%clk 0:02:42.9]} 14. Nf3
{[%clk 0:02:39.6]} 14... exf4 {[%clk 0:02:30.2]} 15. gxf4 {[%clk 0:02:35.3]}
15... f5 {[%clk 0:02:22.7]} 16. e5 {[%clk 0:02:31.7]} 16... d5 {[%clk
0:02:08.1]} 17. cxd5 {[%clk 0:02:28.8]} 17... Qxd5 {[%clk 0:02:09]} 18. c4
{[%clk 0:02:23.1]} 18... Qe4 {[%clk 0:01:55.1]} 19. Qb3 {[%clk 0:02:22]} 19...
Na5 {[%clk 0:01:51.2]} 20. Qc3 {[%clk 0:02:03.9]} 20... Qc6 {[%clk 0:01:25.5]}
21. Nd2 {[%clk 0:01:55.9]} 21... Rad8 {[%clk 0:01:15.4]} 22. Rf2 {[%clk
0:01:26.5]} 22... Rxd4 {[%clk 0:00:49.9]} 23. Qxd4 {[%clk 0:01:24.6]} 23... Rd8
{[%clk 0:00:45]} 24. Qc3 {[%clk 0:01:14]} 24... Bc5 {[%clk 0:00:42.9]} 25. Bb2
{[%clk 0:01:11.9]} 25... Qg6+ {[%clk 0:00:21.4]} 26. Kf1 {[%clk 0:01:04.8]}
26... Bxf2 {[%clk 0:00:19.8]} 27. Kxf2 {[%clk 0:01:03.6]} 27... Qg4 {[%clk
0:00:19.1]} 28. Nf3 {[%clk 0:00:58.5]} 28... Qxf4 {[%clk 0:00:18.6]} 29. e6
{[%clk 0:00:55.3]} 29... Qh6 {[%clk 0:00:14.7]} 30. Rg1 {[%clk 0:00:53.1]} 1-0

[Event "*** Titled Tuesday Blitz"]
[Site "Chess.com"]
[Date "2020.11.03"]
[Round "9"]
[White "natelleka"]
[Black "politeplayer"]
[Result "0-1"]
[WhiteElo "2187"]
[BlackElo "2222"]
[TimeControl "180+1"]
[EndTime "11:48:19 PST"]
[Termination "politeplayer won by checkmate"]

1. e4 {[%clk 0:03:00.9]} 1... e5 {[%clk 0:02:57.1]} 2. Nf3 {[%clk 0:03:00.2]}
2... Nf6 {[%clk 0:02:56.6]} 3. Nxe5 {[%clk 0:03:00]} 3... d6 {[%clk 0:02:56.5]}
4. Nf3 {[%clk 0:02:59.8]} 4... Nxe4 {[%clk 0:02:56.4]} 5. d4 {[%clk 0:03:00.4]}
5... d5 {[%clk 0:02:56.6]} 6. Bd3 {[%clk 0:03:01]} 6... Bd6 {[%clk 0:02:55.7]}
7. O-O {[%clk 0:03:01]} 7... O-O {[%clk 0:02:55]} 8. Re1 {[%clk 0:03:01.5]} 8...
Re8 {[%clk 0:02:51.1]} 9. c4 {[%clk 0:03:00.6]} 9... c6 {[%clk 0:02:49.4]} 10.
Nc3 {[%clk 0:02:59.8]} 10... Nxc3 {[%clk 0:02:48]} 11. Rxe8+ {[%clk 0:02:59.6]}
11... Qxe8 {[%clk 0:02:48.2]} 12. bxc3 {[%clk 0:02:59.6]} 12... Bg4 {[%clk
0:02:45]} 13. Be3 {[%clk 0:02:48]} 13... Bh5 {[%clk 0:02:15.9]} 14. Bxh7+ {[%clk
0:02:10.3]} 14... Kxh7 {[%clk 0:02:09.7]} 15. Ng5+ {[%clk 0:02:10.6]} 15... Kg6
{[%clk 0:02:10.2]} 16. g4 {[%clk 0:02:10.6]} 16... Qd7 {[%clk 0:01:28.8]} 17.
gxh5+ {[%clk 0:02:08.7]} 17... Kf6 {[%clk 0:01:29.3]} 18. Qf3+ {[%clk
0:02:03.3]} 18... Qf5 {[%clk 0:01:29.7]} 19. Nh7+ {[%clk 0:01:41.2]} 19... Ke6
{[%clk 0:01:29.1]} 20. Ng5+ {[%clk 0:01:24.8]} 20... Kf6 {[%clk 0:01:27]} 21.
Qxf5+ {[%clk 0:01:20.5]} 21... Kxf5 {[%clk 0:01:27]} 22. Nxf7 {[%clk 0:01:21]}
22... Ba3 {[%clk 0:01:27.5]} 23. Rb1 {[%clk 0:01:16]} 23... b6 {[%clk
0:01:23.4]} 24. cxd5 {[%clk 0:01:11.2]} 24... cxd5 {[%clk 0:01:23.5]} 25. Rb5
{[%clk 0:01:03.7]} 25... Nc6 {[%clk 0:01:18]} 26. c4 {[%clk 0:00:46.1]} 26...
Ne7 {[%clk 0:01:00.4]} 27. cxd5 {[%clk 0:00:42.6]} 27... a6 {[%clk 0:00:57]} 28.
Rxb6 {[%clk 0:00:37.9]} 28... Nxd5 {[%clk 0:00:57.4]} 29. Rb7 {[%clk 0:00:28.5]}
29... Re8 {[%clk 0:00:42.6]} 30. Bc1 {[%clk 0:00:18.4]} 30... Re1+ {[%clk
0:00:40.1]} 31. Kg2 {[%clk 0:00:18.6]} 31... Rxc1 {[%clk 0:00:40.5]} 32. Nh8
{[%clk 0:00:18.7]} 32... Nf4+ {[%clk 0:00:40.3]} 33. Kf3 {[%clk 0:00:18]} 33...
Rc3# {[%clk 0:00:39.6]} 0-1

[Event "*** Titled Tuesday Blitz"]
[Site "Chess.com"]
[Date "2020.11.03"]
[Round "9"]
[White "kirillshevchenko"]
[Black "Kobalia"]
[Result "1/2-1/2"]
[WhiteElo "2867"]
[BlackElo "2753"]
[TimeControl "180+1"]
[EndTime "11:48:26 PST"]
[Termination "Game drawn by repetition"]

1. e4 {[%clk 0:03:00.9]} 1... c6 {[%clk 0:02:59.8]} 2. d4 {[%clk 0:03:00.3]}
2... d5 {[%clk 0:03:00.7]} 3. f3 {[%clk 0:02:59.5]} 3... dxe4 {[%clk 0:02:52.1]}
4. fxe4 {[%clk 0:02:59.4]} 4... e5 {[%clk 0:02:53]} 5. Nf3 {[%clk 0:02:59.9]}
5... Bg4 {[%clk 0:02:52.2]} 6. c3 {[%clk 0:02:59.5]} 6... Nf6 {[%clk 0:02:50.2]}
7. Be2 {[%clk 0:02:28.3]} 7... Bxf3 {[%clk 0:02:41.3]} 8. Bxf3 {[%clk
0:02:27.5]} 8... Bd6 {[%clk 0:02:41]} 9. O-O {[%clk 0:02:26]} 9... O-O {[%clk
0:02:40.7]} 10. Bg5 {[%clk 0:02:22.1]} 10... Nbd7 {[%clk 0:02:39.6]} 11. Nd2
{[%clk 0:02:17.8]} 11... b5 {[%clk 0:02:38.5]} 12. Bg4 {[%clk 0:02:11]} 12...
Qc7 {[%clk 0:02:34.4]} 13. Bxf6 {[%clk 0:02:06.2]} 13... Nxf6 {[%clk 0:02:30.3]}
14. Rxf6 {[%clk 0:02:06.7]} 14... gxf6 {[%clk 0:02:30.6]} 15. Bf5 {[%clk
0:02:07.3]} 15... Rfe8 {[%clk 0:02:30.4]} 16. Qh5 {[%clk 0:02:04.2]} 16... Kf8
{[%clk 0:02:30.5]} 17. Nf3 {[%clk 0:01:43.8]} 17... Ke7 {[%clk 0:02:29.2]} 18.
Rd1 {[%clk 0:01:38.1]} 18... Rg8 {[%clk 0:02:28.1]} 19. Bh3 {[%clk 0:01:37.1]}
19... b4 {[%clk 0:02:10]} 20. c4 {[%clk 0:00:52.2]} 20... exd4 {[%clk
0:02:02.9]} 21. Nxd4 {[%clk 0:00:50.1]} 21... Rg5 {[%clk 0:01:56.1]} 22. Nf5+
{[%clk 0:00:39.2]} 22... Rxf5 {[%clk 0:01:56.2]} 23. Bxf5 {[%clk 0:00:38.3]}
23... Rd8 {[%clk 0:01:54.6]} 24. Kh1 {[%clk 0:00:33.6]} 24... Be5 {[%clk
0:01:50.7]} 25. Rf1 {[%clk 0:00:33.6]} 25... Qd6 {[%clk 0:01:35.7]} 26. Bxh7
{[%clk 0:00:31.2]} 26... Rh8 {[%clk 0:01:25]} 27. Qh6 {[%clk 0:00:19.7]} 27...
Qd3 {[%clk 0:01:21.1]} 28. Rg1 {[%clk 0:00:16.8]} 28... Bd4 {[%clk 0:01:13.6]}
29. e5 {[%clk 0:00:05.4]} 29... Rxh7 {[%clk 0:01:00.2]} 30. Qxf6+ {[%clk
0:00:05.4]} 30... Kf8 {[%clk 0:00:59.3]} 31. Qd8+ {[%clk 0:00:05.2]} 31... Kg7
{[%clk 0:00:59.4]} 32. Qf6+ {[%clk 0:00:05.8]} 32... Kg8 {[%clk 0:00:48.5]} 33.
Qd8+ {[%clk 0:00:05.3]} 33... Kg7 {[%clk 0:00:49]} 34. Qf6+ {[%clk 0:00:05.4]}
34... Kg8 {[%clk 0:00:49.3]} 35. Qd8+ {[%clk 0:00:05.6]} 35... Kg7 {[%clk
0:00:49.6]} 1/2-1/2

[Event "*** Titled Tuesday Blitz"]
[Site "Chess.com"]
[Date "2020.11.03"]
[Round "9"]
[White "alexsergeyev"]
[Black "petrkostenko"]
[Result "0-1"]
[WhiteElo "2322"]
[BlackElo "2445"]
[TimeControl "180+1"]
[EndTime "11:48:33 PST"]
[Termination "petrkostenko won on time"]

1. d4 {[%clk 0:03:00.9]} 1... e6 {[%clk 0:02:58.7]} 2. c4 {[%clk 0:02:59.5]}
2... b6 {[%clk 0:02:59]} 3. Qc2 {[%clk 0:02:51.2]} 3... Bb7 {[%clk 0:02:58.4]}
4. e4 {[%clk 0:02:48.1]} 4... Bb4+ {[%clk 0:02:32.4]} 5. Nd2 {[%clk 0:02:41]}
5... c5 {[%clk 0:02:29.9]} 6. d5 {[%clk 0:02:32.9]} 6... b5 {[%clk 0:02:29.9]}
7. Nf3 {[%clk 0:02:29.7]} 7... Nf6 {[%clk 0:01:56.8]} 8. b3 {[%clk 0:02:17.7]}
8... O-O {[%clk 0:01:55.1]} 9. Bd3 {[%clk 0:02:08.7]} 9... bxc4 {[%clk
0:01:54.7]} 10. bxc4 {[%clk 0:02:07.2]} 10... d6 {[%clk 0:01:51.5]} 11. O-O
{[%clk 0:02:05.6]} 11... Nbd7 {[%clk 0:01:51.5]} 12. Bb2 {[%clk 0:02:03.4]}
12... e5 {[%clk 0:01:49.8]} 13. Rfb1 {[%clk 0:01:55.1]} 13... Nh5 {[%clk
0:01:48.2]} 14. Nf1 {[%clk 0:01:52]} 14... Rb8 {[%clk 0:01:47.3]} 15. Bc1 {[%clk
0:01:50.5]} 15... Nf4 {[%clk 0:01:45.8]} 16. Ng3 {[%clk 0:01:36.2]} 16... g6
{[%clk 0:01:44.9]} 17. Rb3 {[%clk 0:01:18.8]} 17... Ba5 {[%clk 0:01:42.3]} 18.
Rab1 {[%clk 0:01:16.7]} 18... Bb6 {[%clk 0:01:41.5]} 19. a4 {[%clk 0:01:15]}
19... Qc7 {[%clk 0:01:40.7]} 20. Bxf4 {[%clk 0:01:08]} 20... exf4 {[%clk
0:01:40.1]} 21. Ne2 {[%clk 0:01:08.4]} 21... Ne5 {[%clk 0:01:35.2]} 22. Nxf4
{[%clk 0:01:05.4]} 22... Nxf3+ {[%clk 0:01:34.9]} 23. gxf3 {[%clk 0:01:05.7]}
23... Ba6 {[%clk 0:01:32.6]} 24. Ng2 {[%clk 0:00:57.3]} 24... Ba5 {[%clk
0:01:26.7]} 25. f4 {[%clk 0:00:54.5]} 25... Rxb3 {[%clk 0:01:25.3]} 26. Rxb3
{[%clk 0:00:53.3]} 26... Bb4 {[%clk 0:01:24.9]} 27. Ne3 {[%clk 0:00:45]} 27...
Qe7 {[%clk 0:01:20.2]} 28. Qb2 {[%clk 0:00:34.4]} 28... Qh4 {[%clk 0:01:19.7]}
29. Ng2 {[%clk 0:00:30.7]} 29... Qe7 {[%clk 0:01:19.5]} 30. e5 {[%clk
0:00:29.6]} 30... Bc8 {[%clk 0:01:19.2]} 31. Bf1 {[%clk 0:00:18.2]} 31... Bd7
{[%clk 0:01:13.7]} 32. Re3 {[%clk 0:00:17.6]} 32... Bxa4 {[%clk 0:01:13.2]} 33.
f5 {[%clk 0:00:15]} 33... dxe5 {[%clk 0:01:08.7]} 34. Rxe5 {[%clk 0:00:12.7]}
34... Qf6 {[%clk 0:01:08.8]} 35. f4 {[%clk 0:00:11.6]} 35... Bd7 {[%clk
0:01:08.5]} 36. Ne3 {[%clk 0:00:10.6]} 36... Qh4 {[%clk 0:01:05.4]} 37. Ng2
{[%clk 0:00:03.3]} 37... Qf6 {[%clk 0:01:02.5]} 38. Ne3 {[%clk 0:00:02]} 38...
a5 {[%clk 0:00:59.7]} 0-1

[Event "*** Titled Tuesday Blitz"]
[Site "Chess.com"]
[Date "2020.11.03"]
[Round "9"]
[White "AurumO"]
[Black "ethylalcohol"]
[Result "0-1"]
[WhiteElo "1951"]
[BlackElo "2096"]
[TimeControl "180+1"]
[EndTime "11:48:34 PST"]
[Termination "ethylalcohol won by resignation"]

1. e4 {[%clk 0:03:00.9]} 1... e6 {[%clk 0:02:59.2]} 2. d4 {[%clk 0:02:59.7]}
2... d5 {[%clk 0:02:58.2]} 3. exd5 {[%clk 0:03:00.6]} 3... exd5 {[%clk
0:02:59.1]} 4. Bd3 {[%clk 0:02:58.1]} 4... Bd6 {[%clk 0:02:59.3]} 5. Nf3 {[%clk
0:02:58.8]} 5... Ne7 {[%clk 0:02:58.7]} 6. c3 {[%clk 0:02:58.6]} 6... O-O {[%clk
0:02:58]} 7. O-O {[%clk 0:02:57.9]} 7... Bf5 {[%clk 0:02:57.6]} 8. Re1 {[%clk
0:02:57.2]} 8... Nbc6 {[%clk 0:02:57.1]} 9. Bf1 {[%clk 0:02:57]} 9... Qd7 {[%clk
0:02:55.1]} 10. a4 {[%clk 0:02:50.3]} 10... Rae8 {[%clk 0:02:53.5]} 11. Be3
{[%clk 0:02:36.5]} 11... Ng6 {[%clk 0:02:51.9]} 12. Nbd2 {[%clk 0:02:34.2]}
12... Bg4 {[%clk 0:02:39.6]} 13. b4 {[%clk 0:02:27.3]} 13... Kh8 {[%clk
0:02:17.7]} 14. b5 {[%clk 0:02:19]} 14... Nce7 {[%clk 0:02:15.7]} 15. c4 {[%clk
0:02:17.7]} 15... Bb4 {[%clk 0:02:03.8]} 16. Qb3 {[%clk 0:02:11.9]} 16... Bxd2
{[%clk 0:01:59.5]} 17. Nxd2 {[%clk 0:02:10.4]} 17... Nf5 {[%clk 0:01:55.8]} 18.
cxd5 {[%clk 0:02:02.2]} 18... Nxe3 {[%clk 0:01:50.6]} 19. fxe3 {[%clk
0:02:03.1]} 19... f5 {[%clk 0:01:34.7]} 20. e4 {[%clk 0:01:48.6]} 20... fxe4
{[%clk 0:01:26.2]} 21. Nxe4 {[%clk 0:01:49.5]} 21... Nf4 {[%clk 0:01:07.3]} 22.
Re3 {[%clk 0:01:36.7]} 22... Nxd5 {[%clk 0:01:02.5]} 23. Ree1 {[%clk 0:01:18.2]}
23... Qf5 {[%clk 0:01:01.8]} 24. Bc4 {[%clk 0:01:01]} 24... Nf4 {[%clk
0:00:56.1]} 25. Ng3 {[%clk 0:00:45.3]} 25... Qf6 {[%clk 0:00:53]} 26. Qc3 {[%clk
0:00:10.3]} 26... Nh3+ {[%clk 0:00:49]} 27. gxh3 {[%clk 0:00:09.1]} 27... Qf2+
{[%clk 0:00:48.9]} 28. Kh1 {[%clk 0:00:09.3]} 28... Bf3+ {[%clk 0:00:49.2]} 29.
Qxf3 {[%clk 0:00:05.4]} 29... Qxf3+ {[%clk 0:00:48.4]} 30. Kg1 {[%clk
0:00:06.3]} 30... Qf2+ {[%clk 0:00:48.5]} 31. Kh1 {[%clk 0:00:04.4]} 31... Rxe1+
{[%clk 0:00:48.5]} 32. Rxe1 {[%clk 0:00:04.2]} 32... Qxe1+ {[%clk 0:00:48.8]}
33. Kg2 {[%clk 0:00:05.1]} 33... Qd2+ {[%clk 0:00:47.2]} 34. Be2 {[%clk
0:00:03.3]} 34... Re8 {[%clk 0:00:44]} 35. h4 {[%clk 0:00:04.2]} 35... Rxe2+
{[%clk 0:00:43.1]} 36. Nxe2 {[%clk 0:00:05.1]} 36... Qxe2+ {[%clk 0:00:43.9]}
0-1

[Event "*** Titled Tuesday Blitz"]
[Site "Chess.com"]
[Date "2020.11.03"]
[Round "9"]
[White "ssrija97"]
[Black "esskeettit"]
[Result "1-0"]
[WhiteElo "2322"]
[BlackElo "2445"]
[TimeControl "180+1"]
[EndTime "11:48:42 PST"]
[Termination "ssrija97 won by resignation"]

1. e4 {[%clk 0:03:00.9]} 1... c5 {[%clk 0:02:59.4]} 2. Nf3 {[%clk 0:03:00.6]}
2... Nc6 {[%clk 0:02:59.7]} 3. d4 {[%clk 0:03:00.5]} 3... cxd4 {[%clk
0:03:00.6]} 4. Nxd4 {[%clk 0:03:00.8]} 4... g6 {[%clk 0:03:01.1]} 5. c4 {[%clk
0:02:57.7]} 5... Nf6 {[%clk 0:03:00.3]} 6. Nc3 {[%clk 0:02:56.8]} 6... d6 {[%clk
0:02:59.8]} 7. Be3 {[%clk 0:02:55.8]} 7... Ng4 {[%clk 0:02:58.6]} 8. Nxc6 {[%clk
0:02:38]} 8... bxc6 {[%clk 0:02:59.5]} 9. Bf4 {[%clk 0:02:29.8]} 9... Bg7 {[%clk
0:02:31.8]} 10. Be2 {[%clk 0:02:25.1]} 10... Qb6 {[%clk 0:01:35.4]} 11. O-O
{[%clk 0:02:08.4]} 11... Qxb2 {[%clk 0:01:25.3]} 12. Bxg4 {[%clk 0:02:00.9]}
12... Qxc3 {[%clk 0:01:25.1]} 13. Qa4 {[%clk 0:01:41.7]} 13... O-O {[%clk
0:01:02.6]} 14. Bf3 {[%clk 0:01:34]} 14... Be6 {[%clk 0:00:43.4]} 15. Rac1
{[%clk 0:01:28.8]} 15... Qf6 {[%clk 0:00:43.4]} 16. Be3 {[%clk 0:01:15.5]} 16...
Rfc8 {[%clk 0:00:39.3]} 17. Rfd1 {[%clk 0:01:14.2]} 17... Qb2 {[%clk 0:00:21.4]}
18. Rc2 {[%clk 0:01:05.7]} 18... Qb7 {[%clk 0:00:19.5]} 19. c5 {[%clk
0:01:05.2]} 19... Qd7 {[%clk 0:00:13.8]} 20. Rcd2 {[%clk 0:00:58]} 20... d5
{[%clk 0:00:11]} 21. exd5 {[%clk 0:00:57.3]} 21... cxd5 {[%clk 0:00:11.9]} 22.
Qxd7 {[%clk 0:00:57.2]} 22... Bxd7 {[%clk 0:00:12.3]} 23. Bxd5 {[%clk
0:00:52.7]} 23... Ba4 {[%clk 0:00:12.5]} 24. Bxa8 {[%clk 0:00:49.7]} 24... Bxd1
{[%clk 0:00:11.9]} 25. Bb7 {[%clk 0:00:49.6]} 25... Rb8 {[%clk 0:00:08.3]} 26.
c6 {[%clk 0:00:48.5]} 26... Bg4 {[%clk 0:00:05.9]} 27. Bxa7 {[%clk 0:00:45.7]}
27... Re8 {[%clk 0:00:04]} 28. h3 {[%clk 0:00:43.2]} 28... Bf5 {[%clk
0:00:03.6]} 29. c7 {[%clk 0:00:42.3]} 29... Be5 {[%clk 0:00:03.8]} 30. Rd8
{[%clk 0:00:41.5]} 30... Bxc7 {[%clk 0:00:01.5]} 31. Rxe8+ {[%clk 0:00:41.3]}
31... Kg7 {[%clk 0:00:02.4]} 32. Bd4+ {[%clk 0:00:38.6]} 32... f6 {[%clk
0:00:01.5]} 33. Rxe7+ {[%clk 0:00:38.6]} 1-0

[Event "*** Titled Tuesday Blitz"]
[Site "Chess.com"]
[Date "2020.11.03"]
[Round "9"]
[White "chessmadara"]
[Black "MIJuanReyesRosa"]
[Result "1-0"]
[WhiteElo "2224"]
[BlackElo "2120"]
[TimeControl "180+1"]
[EndTime "11:48:44 PST"]
[Termination "chessmadara won by checkmate"]

1. e4 {[%clk 0:03:00.8]} 1... c5 {[%clk 0:02:54.9]} 2. Nf3 {[%clk 0:03:00.5]}
2... e6 {[%clk 0:02:54.7]} 3. d4 {[%clk 0:02:59.8]} 3... cxd4 {[%clk 0:02:54.9]}
4. Nxd4 {[%clk 0:03:00.7]} 4... a6 {[%clk 0:02:55.2]} 5. c4 {[%clk 0:03:00.3]}
5... Qc7 {[%clk 0:02:55.2]} 6. Nc3 {[%clk 0:03:00.1]} 6... Nf6 {[%clk
0:02:55.3]} 7. Be2 {[%clk 0:02:57.8]} 7... b6 {[%clk 0:02:54.7]} 8. O-O {[%clk
0:02:56.7]} 8... Bb7 {[%clk 0:02:54.5]} 9. f3 {[%clk 0:02:56.3]} 9... d6 {[%clk
0:02:54.7]} 10. Be3 {[%clk 0:02:54.5]} 10... Be7 {[%clk 0:02:54.8]} 11. Rc1
{[%clk 0:02:54.4]} 11... Nbd7 {[%clk 0:02:55]} 12. b4 {[%clk 0:02:52.7]} 12...
Rc8 {[%clk 0:02:51.7]} 13. a4 {[%clk 0:02:49.6]} 13... O-O {[%clk 0:02:50.7]}
14. Ra1 {[%clk 0:02:43]} 14... Qb8 {[%clk 0:02:45]} 15. Qd2 {[%clk 0:02:39.8]}
15... d5 {[%clk 0:02:25.1]} 16. exd5 {[%clk 0:02:36.6]} 16... exd5 {[%clk
0:02:21.9]} 17. Nxd5 {[%clk 0:02:34.3]} 17... Nxd5 {[%clk 0:02:09.9]} 18. cxd5
{[%clk 0:02:35.1]} 18... Bxd5 {[%clk 0:02:09.4]} 19. Bxa6 {[%clk 0:02:31.1]}
19... Rcd8 {[%clk 0:01:57.8]} 20. Nf5 {[%clk 0:02:29.1]} 20... Bf6 {[%clk
0:01:39.2]} 21. Qxd5 {[%clk 0:02:22]} 21... Bxa1 {[%clk 0:01:38.4]} 22. Rxa1
{[%clk 0:02:22.9]} 22... Nc5 {[%clk 0:01:28.1]} 23. Qc4 {[%clk 0:02:08.5]} 23...
Nxa6 {[%clk 0:01:25.1]} 24. Ne7+ {[%clk 0:01:37]} 24... Kh8 {[%clk 0:01:23.6]}
25. Nc6 {[%clk 0:01:28.7]} 25... Qc7 {[%clk 0:01:05.4]} 26. Rc1 {[%clk
0:01:12.2]} 26... Rc8 {[%clk 0:00:45.8]} 27. Qxa6 {[%clk 0:01:10.4]} 27... Qd7
{[%clk 0:00:39.4]} 28. b5 {[%clk 0:01:01.5]} 28... Rfe8 {[%clk 0:00:35.8]} 29.
Qxb6 {[%clk 0:00:56.2]} 29... Qd3 {[%clk 0:00:29.3]} 30. Kf2 {[%clk 0:00:36]}
30... Qa3 {[%clk 0:00:24.9]} 31. Qd4 {[%clk 0:00:29.6]} 31... Qa2+ {[%clk
0:00:19.8]} 32. Kg1 {[%clk 0:00:28.3]} 32... h6 {[%clk 0:00:19.2]} 33. Bxh6
{[%clk 0:00:27.2]} 33... Qe6 {[%clk 0:00:16.4]} 34. Qxg7# {[%clk 0:00:26.3]} 1-0

[Event "*** Titled Tuesday Blitz"]
[Site "Chess.com"]
[Date "2020.11.03"]
[Round "9"]
[White "mjray79"]
[Black "Keures"]
[Result "0-1"]
[WhiteElo "2457"]
[BlackElo "2331"]
[TimeControl "180+1"]
[EndTime "11:48:46 PST"]
[Termination "Keures won by resignation"]

1. d4 {[%clk 0:03:00.9]} 1... Nf6 {[%clk 0:02:59.6]} 2. c4 {[%clk 0:03:01.3]}
2... c5 {[%clk 0:02:59.5]} 3. d5 {[%clk 0:03:01.1]} 3... b5 {[%clk 0:02:59.7]}
4. Nf3 {[%clk 0:03:01.2]} 4... g6 {[%clk 0:02:56.9]} 5. Qc2 {[%clk 0:02:56.9]}
5... bxc4 {[%clk 0:02:56.5]} 6. e4 {[%clk 0:02:56.2]} 6... d6 {[%clk 0:02:56.1]}
7. Bxc4 {[%clk 0:02:55.3]} 7... Bg7 {[%clk 0:02:52.5]} 8. Nc3 {[%clk 0:02:54.6]}
8... O-O {[%clk 0:02:52.2]} 9. O-O {[%clk 0:02:54.4]} 9... Ba6 {[%clk
0:02:51.6]} 10. Bxa6 {[%clk 0:02:50.5]} 10... Nxa6 {[%clk 0:02:52.5]} 11. a3
{[%clk 0:02:50.8]} 11... Nd7 {[%clk 0:02:48]} 12. Ne1 {[%clk 0:02:50.5]} 12...
f5 {[%clk 0:02:40.9]} 13. exf5 {[%clk 0:02:47.6]} 13... Rxf5 {[%clk 0:02:39.3]}
14. Nd3 {[%clk 0:02:41.9]} 14... Nb6 {[%clk 0:02:23.4]} 15. Nf4 {[%clk
0:02:35.4]} 15... Nc7 {[%clk 0:02:21.1]} 16. Rd1 {[%clk 0:02:31.7]} 16... Qf8
{[%clk 0:02:14.9]} 17. Qe4 {[%clk 0:02:22.9]} 17... Re5 {[%clk 0:01:35.5]} 18.
Qd3 {[%clk 0:02:12.5]} 18... Bh6 {[%clk 0:01:26.8]} 19. Qg3 {[%clk 0:01:30.5]}
19... Rf5 {[%clk 0:01:14.4]} 20. Nxg6 {[%clk 0:01:18.9]} 20... hxg6 {[%clk
0:01:12.4]} 21. Qxg6+ {[%clk 0:01:19.1]} 21... Bg7 {[%clk 0:01:10.5]} 22. Bh6
{[%clk 0:01:19.4]} 22... Rf6 {[%clk 0:01:00.4]} 23. Bxg7 {[%clk 0:01:19.6]}
23... Qxg7 {[%clk 0:01:00.8]} 24. Qe4 {[%clk 0:01:18.7]} 24... Raf8 {[%clk
0:00:59.5]} 25. Rf1 {[%clk 0:01:14.7]} 25... Rf4 {[%clk 0:00:53.3]} 26. Qe3
{[%clk 0:00:54.5]} 26... Nbxd5 {[%clk 0:00:49.2]} 27. Nxd5 {[%clk 0:00:52.7]}
27... Nxd5 {[%clk 0:00:50.1]} 28. Qb3 {[%clk 0:00:53.1]} 28... Qf7 {[%clk
0:00:50.1]} 29. f3 {[%clk 0:00:46.7]} 29... Nb6 {[%clk 0:00:49.8]} 30. Qe3
{[%clk 0:00:45.5]} 30... Rd4 {[%clk 0:00:35.4]} 31. Rae1 {[%clk 0:00:41.2]}
31... e5 {[%clk 0:00:34.4]} 32. b4 {[%clk 0:00:29.8]} 32... Nd5 {[%clk 0:00:33]}
33. Qg5+ {[%clk 0:00:27.4]} 33... Qg7 {[%clk 0:00:33.5]} 34. Qh5 {[%clk
0:00:25.3]} 34... Nf4 {[%clk 0:00:32.5]} 35. Qg4 {[%clk 0:00:21.2]} 35... Rd2
{[%clk 0:00:27.8]} 36. Qxg7+ {[%clk 0:00:12.1]} 36... Kxg7 {[%clk 0:00:28.7]}
37. Rf2 {[%clk 0:00:12.6]} 37... Rxf2 {[%clk 0:00:28.8]} 38. Kxf2 {[%clk
0:00:13.5]} 38... Nd3+ {[%clk 0:00:29.4]} 0-1